fUSD/lending_fUSD_20240319
["ID","MTS","AMOUNT","RATE_DAILY","PERIOD"]
[319591654,1710885039449,-618.58,0.00030136,2]
[319591655,1710885039462,-529.43,0.00030136,2]
[319591657,1710885039472,-500.0,0.00030136,2]
[319591659,1710885039483,-563.52,0.00030136,2]
[319591661,1710885039493,-500.0,0.00030136,2]
[319591663,1710885039502,-2015.12,0.00030136,2]
[319591664,1710885039511,-500.0,0.00030136,2]
[319591665,1710885039522,-500.0,0.00030136,2]
[319591666,1710885039531,-643.9600521,0.00030136,2]
[319591667,1710885039541,-631.9,0.00030136,2]
[319591668,1710885039552,-681.13,0.00030136,2]
[319591669,1710885039561,-497.0,0.00030136,2]
[319591670,1710885039571,-1086.99,0.00030136,2]
[319591671,1710885039580,-500.0,0.00030136,2]
[319591672,1710885039743,-500.0,0.00030136,2]
[319591673,1710885039754,-500.0,0.00030136,2]
[319591674,1710885039764,-500.0,0.00030136,2]
[319591675,1710885039773,-500.0,0.00030136,2]
[319591676,1710885039782,-652.31,0.00030136,2]
[319591677,1710885039791,-500.0,0.00030136,2]
[319591678,1710885039802,-1320.6,0.00030136,2]
[319591679,1710885039811,-1250.92,0.00030136,2]
[319591680,1710885039820,-1120.04,0.00030136,2]
[319591681,1710885039829,-500.0,0.00030136,2]
[319591682,1710885039838,-466.54525367,0.00030136,2]
[319591683,1710885039846,-500.0,0.00030136,2]
[319591684,1710885039855,-500.0,0.00030136,2]
[319591685,1710885039865,-510.25,0.00030136,2]
[319591686,1710885039874,-598.90374583,0.00030136,2]
[319591687,1710885039883,-921.3,0.00030136,2]
[319591688,1710885039892,-1041.72,0.00030136,2]
[319591689,1710885039901,-1043.25,0.00030136,2]
[319591690,1710885039910,-500.0,0.00030136,2]
[319591691,1710885039920,-500.0,0.00030136,2]
[319591692,1710885039928,-535.44,0.00030136,2]
[319591693,1710885039938,-500.0,0.00030136,2]
[319591694,1710885039946,-500.0,0.00030136,2]
[319591695,1710885039956,-500.0,0.00030136,2]
[319591696,1710885039964,-500.0,0.00030136,2]
[319591697,1710885039973,-500.0,0.00030136,2]
[319591698,1710885039982,-957.02,0.00030136,2]
[319591700,1710885039992,-549.6,0.00030136,2]
[319591702,1710885040001,-500.0,0.00030136,2]
[319591703,1710885040010,-500.0,0.00030136,2]
[319591704,1710885040019,-500.0,0.00030136,2]
[319591705,1710885040028,-500.0,0.00030136,2]
[319591706,1710885040037,-546.14,0.00030136,2]
[319591707,1710885040048,-500.0,0.00030136,2]
[319591708,1710885040057,-500.0,0.00030136,2]
[319591709,1710885040067,-983.01,0.00030136,2]
[319591710,1710885040076,-500.0,0.00030136,2]
[319591711,1710885040085,-500.0,0.00030136,2]
[319591712,1710885040095,-500.0,0.00030136,2]
[319591713,1710885040104,-500.0,0.00030136,2]
[319591714,1710885040115,-502.25,0.00030136,2]
[319591715,1710885040124,-583.52,0.00030136,2]
[319591716,1710885040133,-500.0,0.00030136,2]
[319591717,1710885040143,-500.0,0.00030136,2]
[319591718,1710885040152,-500.0,0.00030136,2]
[319591719,1710885040161,-701.32,0.00030136,2]
[319591720,1710885040171,-845.97,0.00030136,2]
[319591721,1710885040181,-500.0,0.00030136,2]
[319591722,1710885040190,-604.6,0.00030136,2]
[319591723,1710885040199,-500.0,0.00030136,2]
[319591724,1710885040208,-626.44,0.00030136,2]
[319591725,1710885040217,-500.0,0.00030136,2]
[319591726,1710885040227,-500.0,0.00030136,2]
[319591727,1710885040236,-1296.65,0.00030136,2]
[319591728,1710885040245,-500.0,0.00030136,2]
[319591729,1710885040254,-1134.53,0.00030136,2]
[319591730,1710885040264,-500.0,0.00030136,2]
[319591731,1710885040273,-500.0,0.00030136,2]
[319591732,1710885040282,-507.2,0.00030136,2]
[319591733,1710885040291,-783.57,0.00030136,2]
[319591734,1710885040304,-1022.89,0.00030136,2]
[319591735,1710885040314,-668.88,0.00030136,2]
[319591736,1710885040323,-500.0,0.00030136,2]
[319591737,1710885040332,-500.0,0.00030136,2]
[319591738,1710885040341,-597.77,0.00030136,2]
[319591739,1710885040351,-500.0,0.00030136,2]
[319591740,1710885040360,-500.0,0.00030136,2]
[319591741,1710885040369,-500.0,0.00030136,2]
[319591742,1710885040378,-1578.12,0.00030136,2]
[319591743,1710885040387,-1317.95,0.00030136,2]
[319591744,1710885040396,-500.0,0.00030136,2]
[319591745,1710885040405,-500.0,0.00030136,2]
[319591746,1710885040415,-500.0,0.00030136,2]
[319591747,1710885040425,-500.0,0.00030136,2]
[319591748,1710885040438,-706.81,0.00030136,2]
[319591749,1710885040448,-500.0,0.00030136,2]
[319591750,1710885040458,-500.0,0.00030136,2]
[319591751,1710885040467,-820.72,0.00030136,2]
[319591752,1710885040478,-511.35,0.00030136,2]
[319591753,1710885040487,-500.0,0.00030136,2]
[319591754,1710885040496,-500.0,0.00030136,2]
[319591755,1710885040506,-1159.47,0.00030136,2]
[319591756,1710885040516,-752.64,0.00030136,2]
[319591757,1710885040525,-1433.6,0.00030136,2]
[319591758,1710885040535,-500.0,0.00030136,2]
[319591759,1710885040545,-500.0,0.00030136,2]
[319591760,1710885040555,-500.0,0.00030136,2]
[319591761,1710885040563,-500.0,0.00030136,2]
[319591762,1710885040572,-500.0,0.00030136,2]
[319591763,1710885040581,-1189.27,0.00030136,2]
[319591764,1710885040590,-500.0,0.00030136,2]
[319591765,1710885040599,-500.0,0.00030136,2]
[319591766,1710885040609,-500.0,0.00030136,2]
[319591767,1710885040618,-572.14,0.00030136,2]
[319591768,1710885040627,-1127.91,0.00030136,2]
[319591769,1710885040636,-729.46,0.00030136,2]
[319591770,1710885040645,-500.0,0.00030136,2]
[319591771,1710885040654,-500.0,0.00030136,2]
[319591772,1710885040664,-1199.62,0.00030136,2]
[319591773,1710885040673,-562.99,0.00030136,2]
[319591774,1710885040682,-786.3,0.00030136,2]
[319591775,1710885040690,-500.0,0.00030136,2]
[319591776,1710885040700,-500.0,0.00030136,2]
[319591777,1710885040709,-1265.95,0.00030136,2]
[319591778,1710885040718,-500.0,0.00030136,2]
[319591779,1710885040728,-580.29,0.00030136,2]
[319591780,1710885040737,-500.0,0.00030136,2]
[319591781,1710885040746,-500.0,0.00030136,2]
[319591782,1710885040755,-500.0,0.00030136,2]
[319591783,1710885040764,-2136.15,0.00030136,2]
[319591784,1710885040773,-718.68,0.00030136,2]
[319591785,1710885040782,-928.05,0.00030136,2]
[319591786,1710885040791,-500.0,0.00030136,2]
[319591787,1710885040802,-783.9,0.00030136,2]
[319591788,1710885040810,-1320.02,0.00030136,2]
[319591789,1710885040819,-500.0,0.00030136,2]
[319591790,1710885040828,-1043.02,0.00030136,2]
[319591791,1710885040837,-802.08,0.00030136,2]
[319591792,1710885040846,-500.0,0.00030136,2]
[319591793,1710885040855,-1028.49,0.00030136,2]
[319591794,1710885040865,-1179.51,0.00030136,2]
[319591795,1710885040874,-812.3,0.00030136,2]
[319591796,1710885040883,-1146.04,0.00030136,2]
[319591797,1710885040892,-500.0,0.00030136,2]
[319591798,1710885040901,-500.0,0.00030136,2]
[319591799,1710885040911,-500.0,0.00030136,2]
[319591800,1710885040920,-1045.71,0.00030136,2]
[319591801,1710885040929,-500.0,0.00030136,2]
[319591802,1710885040938,-500.0,0.00030136,2]
[319591803,1710885040947,-530.67,0.00030136,2]
[319591804,1710885040956,-649.64,0.00030136,2]
[319591805,1710885040964,-500.0,0.00030136,2]
[319591806,1710885040973,-500.0,0.00030136,2]
[319591807,1710885040982,-500.0,0.00030136,2]
[319591808,1710885040991,-500.0,0.00030136,2]
[319591809,1710885041000,-500.0,0.00030136,2]
[319591810,1710885041009,-500.0,0.00030136,2]
[319591811,1710885041018,-500.0,0.00030136,2]
[319591812,1710885041027,-500.0,0.00030136,2]
[319591813,1710885041036,-500.0,0.00030136,2]
[319591814,1710885041046,-500.0,0.00030136,2]
[319591815,1710885041055,-500.0,0.00030136,2]
[319591816,1710885041065,-775.28,0.00030136,2]
[319591817,1710885041074,-897.58,0.00030136,2]
[319591818,1710885041083,-1675.73,0.00030136,2]
[319591819,1710885041092,-500.0,0.00030136,2]
[319591820,1710885041101,-937.79,0.00030136,2]
[319591821,1710885041110,-500.0,0.00030136,2]
[319591822,1710885041120,-308.53767728,0.00030136,2]
[319591823,1710885041130,-734.15,0.00030136,2]
[319591824,1710885041140,-500.0,0.00030136,2]
[319591825,1710885041149,-500.0,0.00030136,2]
[319591826,1710885041158,-1431.93,0.00030136,2]
[319591827,1710885041168,-530.51,0.00030136,2]
[319591828,1710885041177,-500.0,0.00030136,2]
[319591829,1710885041187,-1508.78,0.00030136,2]
[319591830,1710885041196,-500.0,0.00030136,2]
[319591831,1710885041206,-500.0,0.00030136,2]
[319591832,1710885041215,-500.0,0.00030136,2]
[319591833,1710885041225,-500.0,0.00030136,2]
[319591834,1710885041234,-500.0,0.00030136,2]
[319591835,1710885041243,-500.0,0.00030136,2]
[319591836,1710885041253,-621.71,0.00030136,2]
[319591837,1710885041263,-3024.0,0.00030136,2]
[319591838,1710885041272,-500.0,0.00030136,2]
[319591839,1710885041281,-571.47,0.00030136,2]
[319591840,1710885041291,-500.0,0.00030136,2]
[319591841,1710885041302,-500.0,0.00030136,2]
[319591842,1710885041312,-538.79,0.00030136,2]
[319591843,1710885041321,-762.86,0.00030136,2]
[319591844,1710885041331,-985.89,0.00030136,2]
[319591845,1710885041340,-500.0,0.00030136,2]
[319591846,1710885041350,-1947.91,0.00030136,2]
[319591847,1710885041360,-863.2,0.00030136,2]
[319591848,1710885041370,-513.38429074,0.00030136,2]
[319591849,1710885041379,-500.0,0.00030136,2]
[319591850,1710885041389,-500.0,0.00030136,2]
[319591851,1710885041398,-500.0,0.00030136,2]
[319591852,1710885041407,-747.16,0.00030136,2]
[319591853,1710885041417,-538.79,0.00030136,2]
[319591854,1710885041426,-772.61,0.00030136,2]
[319591855,1710885041437,-500.0,0.00030136,2]
[319591856,1710885041446,-525.63771536,0.00030136,2]
[319591857,1710885041456,-500.0,0.00030136,2]
[319591858,1710885041466,-500.0,0.00030136,2]
[319591859,1710885041475,-500.0,0.00030136,2]
[319591860,1710885041484,-500.0,0.00030136,2]
[319591861,1710885041493,-500.0,0.00030136,2]
[319591862,1710885041502,-1767.34,0.00030136,2]
[319591863,1710885041511,-500.0,0.00030136,2]
[319591864,1710885041521,-500.0,0.00030136,2]
[319591865,1710885041531,-500.0,0.00030136,2]
[319591866,1710885041540,-1603.73,0.00030136,2]
[319591867,1710885041551,-500.0,0.00030136,2]
[319591868,1710885041560,-500.0,0.00030136,2]
[319591869,1710885041569,-500.0,0.00030136,2]
[319591870,1710885041579,-500.0,0.00030136,2]
[319591871,1710885041588,-500.0,0.00030136,2]
[319591872,1710885041597,-892.48,0.00030136,2]
[319591873,1710885041606,-1478.75,0.00030136,2]
[319591874,1710885041615,-654.11,0.00030136,2]
[319591875,1710885041625,-500.0,0.00030136,2]
[319591876,1710885041634,-500.0,0.00030136,2]
[319591877,1710885041643,-1208.68,0.00030136,2]
[319591878,1710885041652,-500.0,0.00030136,2]
[319591879,1710885041661,-500.0,0.00030136,2]
[319591880,1710885041670,-500.0,0.00030136,2]
[319591881,1710885041679,-500.0,0.00030136,2]
[319591882,1710885041688,-1428.4,0.00030136,2]
[319591883,1710885041697,-1477.07,0.00030136,2]
[319591884,1710885041706,-500.0,0.00030136,2]
[319591885,1710885041716,-500.0,0.00030136,2]
[319591886,1710885041726,-526.9,0.00030136,2]
[319591887,1710885041735,-500.0,0.00030136,2]
[319591888,1710885041744,-2930.57,0.00030136,2]
[319591889,1710885041753,-500.0,0.00030136,2]
[319591890,1710885041762,-500.0,0.00030136,2]
[319591891,1710885041771,-948.83,0.00030136,2]
[319591892,1710885041780,-500.0,0.00030136,2]
[319591893,1710885041788,-500.0,0.00030136,2]
[319591894,1710885041799,-1084.77,0.00030136,2]
[319591895,1710885041808,-500.0,0.00030136,2]
[319591896,1710885041817,-500.0,0.00030136,2]
[319591897,1710885041826,-500.0,0.00030136,2]
[319591898,1710885041835,-500.0,0.00030136,2]
[319591899,1710885041844,-500.0,0.00030136,2]
[319591900,1710885041853,-1970.31,0.00030136,2]
[319591901,1710885041863,-1046.29,0.00030136,2]
[319591902,1710885041872,-853.25,0.00030136,2]
[319591903,1710885041881,-748.56,0.00030136,2]
[319591904,1710885041890,-608.95,0.00030136,2]
[319591905,1710885041899,-500.0,0.00030136,2]
[319591906,1710885041908,-500.0,0.00030136,2]
[319591907,1710885041917,-636.98,0.00030136,2]
[319591908,1710885041926,-500.0,0.00030136,2]
[319591909,1710885041934,-316.77699422,0.00030136,2]
[319591910,1710885041943,-500.0,0.00030136,2]
[319591911,1710885041952,-1279.27,0.00030136,2]
[319591912,1710885041961,-500.0,0.00030136,2]
[319591913,1710885041971,-500.0,0.00030136,2]
[319591914,1710885041980,-1827.01,0.00030136,2]
[319591915,1710885041990,-500.0,0.00030136,2]
[319591916,1710885041999,-1006.11,0.00030136,2]
[319591917,1710885042008,-500.0,0.00030136,2]
[319591918,1710885042017,-500.0,0.00030136,2]
[319591919,1710885042027,-500.0,0.00030136,2]
[319591920,1710885042036,-1949.93,0.00030136,2]
[319591921,1710885042046,-500.0,0.00030136,2]
[319591922,1710885042055,-1192.24,0.00030136,2]
[319591923,1710885042064,-500.0,0.00030136,2]
[319591924,1710885042074,-2813.53,0.00030136,2]
[319591925,1710885042083,-845.98,0.00030136,2]
[319591926,1710885042091,-1011.35,0.00030136,2]
[319591927,1710885042100,-1701.68,0.00030136,2]
[319591928,1710885042109,-500.0,0.00030136,2]
[319591929,1710885042119,-1413.56,0.00030136,2]
[319591930,1710885042128,-500.0,0.00030136,2]
[319591931,1710885042137,-671.21,0.00030136,2]
[319591932,1710885042146,-856.2,0.00030136,2]
[319591933,1710885042155,-500.0,0.00030136,2]
[319591934,1710885042165,-500.0,0.00030136,2]
[319591935,1710885042175,-1896.31,0.00030136,2]
[319591936,1710885042185,-2782.61,0.00030136,2]
[319591937,1710885042194,-500.0,0.00030136,2]
[319591938,1710885042204,-500.0,0.00030136,2]
[319591939,1710885042213,-500.0,0.00030136,2]
[319591940,1710885042222,-609.95,0.00030136,2]
[319591941,1710885042231,-500.0,0.00030136,2]
[319591942,1710885042240,-1536.94,0.00030136,2]
[319591943,1710885042250,-2552.49,0.00030136,2]
[319591944,1710885042259,-500.0,0.00030136,2]
[319591945,1710885042268,-2081.49,0.00030136,2]
[319591946,1710885042278,-500.0,0.00030136,2]
[319591947,1710885042288,-1715.16,0.00030136,2]
[319591948,1710885042299,-500.0,0.00030136,2]
[319591949,1710885042309,-1266.65,0.00030136,2]
[319591950,1710885042318,-1645.88,0.00030136,2]
[319591951,1710885042327,-500.0,0.00030136,2]
[319591952,1710885042336,-500.0,0.00030136,2]
[319591953,1710885042346,-500.0,0.00030136,2]
[319591954,1710885042355,-500.0,0.00030136,2]
[319591955,1710885042365,-500.0,0.00030136,2]
[319591956,1710885042374,-1784.06,0.00030136,2]
[319591957,1710885042384,-446.45137123,0.00030136,2]
[319591958,1710885042394,-1425.44,0.00030136,2]
[319591959,1710885042403,-500.0,0.00030136,2]
[319591960,1710885042412,-645.99,0.00030136,2]
[319591961,1710885042421,-500.0,0.00030136,2]
[319591962,1710885042432,-500.0,0.00030136,2]
[319591963,1710885042441,-856.99,0.00030136,2]
[319591965,1710885042452,-1509.6,0.00030136,2]
[319591966,1710885042464,-500.0,0.00030136,2]
[319591967,1710885042473,-1899.37,0.00030136,2]
[319591968,1710885042483,-825.81,0.00030136,2]
[319591969,1710885042492,-500.0,0.00030136,2]
[319591970,1710885042502,-500.0,0.00030136,2]
[319591971,1710885042511,-615.29390099,0.00030136,2]
[319591972,1710885042520,-500.0,0.00030136,2]
[319591973,1710885042531,-1668.46,0.00030136,2]
[319591974,1710885042541,-500.0,0.00030136,2]
[319591976,1710885042553,-500.0,0.00030136,2]
[319591977,1710885042563,-1817.59,0.00030136,2]
[319591978,1710885042573,-612.56,0.00030136,2]
[319591979,1710885042582,-500.0,0.00030136,2]
[319591980,1710885042592,-641.85,0.00030136,2]
[319591981,1710885042601,-500.0,0.00030136,2]
[319591982,1710885042610,-500.0,0.00030136,2]
[319591983,1710885042620,-1668.73,0.00030136,2]
[319591984,1710885042629,-3349.51,0.00030136,2]
[319591985,1710885042638,-500.0,0.00030136,2]
[319591986,1710885042648,-2185.83,0.00030136,2]
[319591987,1710885042657,-1047.88,0.00030136,2]
[319591988,1710885042667,-339.52188585,0.00030136,2]
[319591989,1710885042676,-500.0,0.00030136,2]
[319591990,1710885042685,-709.8,0.00030136,2]
[319591991,1710885042695,-500.0,0.00030136,2]
[319591992,1710885042704,-3189.82,0.00030136,2]
[319591993,1710885042714,-500.0,0.00030136,2]
[319591994,1710885042723,-500.0,0.00030136,2]
[319591995,1710885042734,-2131.99,0.00030136,2]
[319591996,1710885042743,-500.0,0.00030136,2]
[319591997,1710885042752,-500.0,0.00030136,2]
[319591998,1710885042762,-2548.99,0.00030136,2]
[319591999,1710885042771,-500.0,0.00030136,2]
[319592000,1710885042780,-522.54315642,0.00030136,2]
[319592001,1710885042789,-500.0,0.00030136,2]
[319592002,1710885042799,-1717.39,0.00030136,2]
[319592003,1710885042808,-500.0,0.00030136,2]
[319592004,1710885042817,-500.0,0.00030136,2]
[319592005,1710885042826,-500.0,0.00030136,2]
[319592006,1710885042835,-1545.43163532,0.00030136,2]
[319592037,1710885043515,-1384.71675359,0.00030136,2]
[319592038,1710885043526,-568.97161109,0.00030136,2]
[319592039,1710885043535,-3366.11,0.00030136,2]
[319592040,1710885043547,-920.95,0.00030136,2]
[319592041,1710885043556,-762.14,0.00030136,2]
[319592042,1710885043564,-1172.13,0.00030136,2]
[319592043,1710885043573,-500.0,0.00030136,2]
[319592044,1710885043582,-500.0,0.00030136,2]
[319592045,1710885043591,-500.0,0.00030136,2]
[319592046,1710885043601,-500.0,0.00030136,2]
[319592047,1710885043610,-500.0,0.00030136,2]
[319592048,1710885043619,-500.0,0.00030136,2]
[319592049,1710885043629,-651.81,0.00030136,2]
[319592050,1710885043638,-2755.73,0.00030136,2]
[319592051,1710885043647,-500.0,0.00030136,2]
[319592052,1710885043657,-2171.26,0.00030136,2]
[319592053,1710885043666,-554.31,0.00030136,2]
[319592054,1710885043675,-913.38,0.00030136,2]
[319592055,1710885043684,-517.56,0.00030136,2]
[319592056,1710885043693,-500.0,0.00030136,2]
[319592057,1710885043703,-622.91,0.00030136,2]
[319592058,1710885043711,-1265.69,0.00030136,2]
[319592059,1710885043721,-576.05,0.00030136,2]
[319592060,1710885043730,-2191.46,0.00030136,2]
[319592061,1710885043739,-1378.12,0.00030136,2]
[319592062,1710885043749,-500.0,0.00030136,2]
[319592063,1710885043758,-500.0,0.00030136,2]
[319592064,1710885043767,-271.77586891,0.00030136,2]
[319592065,1710885044226,-150.0,0.00028201,120]
[319592066,1710885044236,-247.84575768,0.00029825,3]
[319592067,1710885044256,-503.91424232,0.00029825,3]
[319592068,1710885044266,-560.52413109,0.00030136,2]
[319592069,1710885044275,-3259.21,0.00030136,2]
[319592070,1710885044285,-516.5,0.00030136,2]
[319592071,1710885044294,-500.0,0.00030136,2]
[319592072,1710885044304,-500.0,0.00030136,2]
[319592073,1710885044314,-750.69,0.00030136,2]
[319592074,1710885044323,-34.7153799,0.00030136,2]
[319592075,1710885044336,-465.2846201,0.00030136,2]
[319592076,1710885044345,-2854.89095449,0.00030136,2]
[319592077,1710885044358,-3244.65904551,0.00030136,2]
[319592078,1710885044367,-500.0,0.00030136,2]
[319592079,1710885044377,-580.47579088,0.00030136,2]
[319592080,1710885044387,-705.53,0.00030136,2]
[319592081,1710885044397,-583.59,0.00030136,2]
[319592082,1710885044406,-510.82,0.00030136,2]
[319592083,1710885044417,-554.14,0.00030136,2]
[319592084,1710885044426,-500.0,0.00030136,2]
[319592085,1710885044439,-1054.91,0.00030136,2]
[319592086,1710885044449,-1769.12,0.00030136,2]
[319592087,1710885044458,-500.0,0.00030136,2]
[319592088,1710885044469,-500.0,0.00030136,2]
[319592089,1710885044479,-500.0,0.00030136,2]
[319592090,1710885044488,-758.11,0.00030136,2]
[319592091,1710885044498,-500.0,0.00030136,2]
[319592092,1710885044507,-500.0,0.00030136,2]
[319592093,1710885044517,-614.47,0.00030136,2]
[319592094,1710885044526,-500.0,0.00030136,2]
[319592095,1710885044535,-565.83,0.00030136,2]
[319592096,1710885044547,-500.0,0.00030136,2]
[319592097,1710885044557,-3031.48,0.00030136,2]
[319592098,1710885044566,-1813.36,0.00030136,2]
[319592099,1710885044576,-1793.05,0.00030136,2]
[319592100,1710885044586,-1781.25,0.00030136,2]
[319592101,1710885044595,-500.0,0.00030136,2]
[319592102,1710885044605,-500.0,0.00030136,2]
[319592103,1710885044614,-2468.00516361,0.00030136,2]
[319592104,1710885044645,-3480.24483639,0.00030136,2]
[319592105,1710885044655,-500.0,0.00030136,2]
[319592106,1710885044665,-500.0,0.00030136,2]
[319592107,1710885044675,-135.64317611,0.00030136,2]
[319592108,1710885044687,-585.54682389,0.00030136,2]
[319592109,1710885044697,-500.0,0.00030136,2]
[319592110,1710885044706,-178.29417511,0.00030136,2]
[319592111,1710885044729,-321.70582489,0.00030136,2]
[319592112,1710885044738,-406.29427011,0.00030136,2]
[319592113,1710885044750,-93.70572989,0.00030136,2]
[319592114,1710885044760,-2298.94,0.00030136,2]
[319592115,1710885044769,-500.0,0.00030136,2]
[319592116,1710885044779,-492.6047641,0.00030136,2]
[319592117,1710885044793,-975.0752359,0.00030136,2]
[319592118,1710885044803,-334.271514,0.00030136,2]
[319592119,1710885044819,-892.34479742,0.00030136,2]
[319592120,1710885044851,-821.68368858,0.00030136,2]
[319592121,1710885044860,-500.0,0.00030136,2]
[319592122,1710885044870,-368.18037534,0.00030136,2]
[319592123,1710885044882,-372.41962466,0.00030136,2]
[319592124,1710885044891,-231.30862147,0.00030136,2]
[319592125,1710885044911,-268.69137853,0.00030136,2]
[319592126,1710885044920,-500.0,0.00030136,2]
[319592127,1710885044930,-500.0,0.00030136,2]
[319592128,1710885044939,-14.68281358,0.00030136,2]
[319592130,1710885045500,-485.31718642,0.00030136,2]
[319592131,1710885045509,-290.55081358,0.00030136,2]
[319592132,1710885045528,-1695.92350042,0.00030136,2]
[319592133,1710885045540,-1739.165686,0.00030136,2]
[319592134,1710885045550,-500.0,0.00030136,2]
[319592135,1710885045559,-7446.28,0.00030136,2]
[319592136,1710885045569,-1176.01,0.00030136,2]
[319592137,1710885045578,-500.0,0.00030136,2]
[319592138,1710885045587,-500.0,0.00030136,2]
[319592139,1710885045597,-500.0,0.00030136,2]
[319592140,1710885045606,-1639.61,0.00030136,2]
[319592141,1710885045616,-500.0,0.00030136,2]
[319592142,1710885045625,-500.0,0.00030136,2]
[319592143,1710885045634,-814.35,0.00030136,2]
[319592144,1710885045643,-500.0,0.00030136,2]
[319592145,1710885045652,-1904.86,0.00030136,2]
[319592146,1710885045661,-531.89,0.00030136,2]
[319592147,1710885045670,-500.0,0.00030136,2]
[319592148,1710885045679,-500.0,0.00030136,2]
[319592149,1710885045688,-500.0,0.00030136,2]
[319592150,1710885045698,-500.0,0.00030136,2]
[319592151,1710885045707,-541.15,0.00030136,2]
[319592152,1710885045717,-500.0,0.00030136,2]
[319592153,1710885045726,-500.0,0.00030136,2]
[319592154,1710885045735,-500.0,0.00030136,2]
[319592155,1710885045744,-500.0,0.00030136,2]
[319592156,1710885045753,-500.0,0.00030136,2]
[319592157,1710885045763,-500.0,0.00030136,2]
[319592158,1710885045773,-500.0,0.00030136,2]
[319592159,1710885045782,-500.0,0.00030136,2]
[319592160,1710885046135,-505.23,0.00030136,2]
[319592161,1710885046144,-500.0,0.00030136,2]
[319592162,1710885046153,-1726.69,0.00030136,2]
[319592163,1710885046163,-500.0,0.00030136,2]
[319592164,1710885046172,-706.92,0.00030136,2]
[319592165,1710885046182,-1397.11,0.00030136,2]
[319592166,1710885046191,-500.0,0.00030136,2]
[319592167,1710885046200,-644.74,0.00030136,2]
[319592168,1710885046211,-2864.27,0.00030136,2]
[319592169,1710885046220,-723.57,0.00030136,2]
[319592170,1710885046229,-500.0,0.00030136,2]
[319592171,1710885046238,-2584.9,0.00030136,2]
[319592172,1710885046247,-352.12240772,0.00030136,2]
[319592173,1710885046295,-6609.63759228,0.00030136,2]
[319592174,1710885046305,-500.0,0.00030136,2]
[319592175,1710885046315,-1043.19,0.00030136,2]
[319592176,1710885046325,-915.89,0.00030136,2]
[319592177,1710885046335,-500.0,0.00030136,2]
[319592179,1710885046345,-1764.05,0.00030136,2]
[319592181,1710885046355,-1312.85,0.00030136,2]
[319592183,1710885046364,-1045.63,0.00030136,2]
[319592185,1710885046374,-961.87,0.00030136,2]
[319592187,1710885046384,-3736.86,0.00030136,2]
[319592189,1710885046393,-500.0,0.00030136,2]
[319592191,1710885046403,-838.02,0.00030136,2]
[319592192,1710885046413,-500.0,0.00030136,2]
[319592194,1710885046423,-500.0,0.00030136,2]
[319592196,1710885046435,-1302.7,0.00030136,2]
[319592199,1710885046446,-2820.33,0.00030136,2]
[319592201,1710885046455,-500.0,0.00030136,2]
[319592203,1710885046465,-431.71198681,0.00030136,2]
[319592204,1710885046475,-500.0,0.00030136,2]
[319592207,1710885046484,-500.0,0.00030136,2]